fUSD/lending_fUSD_20250629
["ID","MTS","AMOUNT","RATE_DAILY","PERIOD"]
[368456181,1751182284952,-254.24,0.0002855,3]
[368456182,1751182284964,-1035.27,0.0002855,3]
[368456183,1751182284974,-490.0,0.0002855,3]
[368456184,1751182284983,-736.8,0.0002855,3]
[368456185,1751182284993,-519.55,0.0002855,3]
[368456186,1751182285002,-490.0,0.0002855,3]
[368456187,1751182285012,-490.0,0.0002855,3]
[368456188,1751182285022,-716.28,0.0002855,3]
[368456189,1751182285031,-490.0,0.0002855,3]
[368456190,1751182285040,-375.96419024,0.0002855,3]
[368456191,1751182285050,-490.0,0.0002855,3]
[368456192,1751182285060,-505.44,0.0002855,3]
[368456193,1751182285070,-490.0,0.0002855,3]
[368456194,1751182285079,-490.0,0.0002855,3]
[368456195,1751182285090,-490.0,0.0002855,3]
[368456196,1751182285100,-490.0,0.0002855,3]
[368456197,1751182285110,-490.0,0.0002855,3]
[368456198,1751182285120,-490.0,0.0002855,3]
[368456199,1751182285131,-490.0,0.0002855,3]
[368456200,1751182285141,-650.79,0.0002855,3]
[368456201,1751182285151,-490.0,0.0002855,3]
[368456202,1751182285161,-587.52,0.0002855,3]
[368456203,1751182285171,-490.0,0.0002855,3]
[368456204,1751182285183,-490.0,0.0002855,3]
[368456205,1751182285192,-865.26,0.0002855,3]
[368456206,1751182285202,-490.0,0.0002855,3]
[368456207,1751182285211,-490.0,0.0002855,3]
[368456208,1751182285222,-670.56,0.0002855,3]
[368456209,1751182285232,-490.0,0.0002855,3]
[368456210,1751182285242,-670.95,0.0002855,3]
[368456211,1751182285251,-490.0,0.0002855,3]
[368456212,1751182285262,-490.0,0.0002855,3]
[368456213,1751182285273,-490.0,0.0002855,3]
[368456214,1751182285282,-642.41,0.0002855,3]
[368456215,1751182285292,-523.7,0.0002855,3]
[368456216,1751182285302,-490.0,0.0002855,3]
[368456217,1751182285311,-627.99,0.0002855,3]
[368456218,1751182285321,-490.0,0.0002855,3]
[368456219,1751182285330,-490.0,0.0002855,3]
[368456220,1751182285340,-490.0,0.0002855,3]
[368456221,1751182285349,-490.0,0.0002855,3]
[368456222,1751182285360,-490.0,0.0002855,3]
[368456223,1751182285370,-607.19,0.0002855,3]
[368456224,1751182285379,-490.0,0.0002855,3]
[368456225,1751182285389,-1648.68,0.0002855,3]
[368456226,1751182285399,-490.0,0.0002855,3]
[368456227,1751182285408,-490.0,0.0002855,3]
[368456228,1751182285418,-490.0,0.0002855,3]
[368456229,1751182285428,-604.32,0.0002855,3]
[368456230,1751182285437,-490.0,0.0002855,3]
[368456231,1751182285448,-490.0,0.0002855,3]
[368456232,1751182285458,-490.0,0.0002855,3]
[368456233,1751182285468,-490.0,0.0002855,3]
[368456234,1751182285477,-490.0,0.0002855,3]
[368456235,1751182285634,-495.98351133,0.0002855,3]
[368456236,1751182285644,-590.12,0.0002855,3]
[368456237,1751182285654,-490.0,0.0002855,3]
[368456238,1751182285663,-490.0,0.0002855,3]
[368456239,1751182285673,-1206.53,0.0002855,3]
[368456240,1751182285682,-490.0,0.0002855,3]
[368456241,1751182285692,-490.0,0.0002855,3]
[368456242,1751182285701,-958.57,0.0002855,3]
[368456243,1751182285710,-490.0,0.0002855,3]
[368456244,1751182285721,-490.0,0.0002855,3]
[368456245,1751182285730,-490.0,0.0002855,3]
[368456246,1751182285740,-229.45166029,0.0002855,3]
[368456247,1751182285749,-490.0,0.0002855,3]
[368456248,1751182285759,-490.0,0.0002855,3]
[368456249,1751182285769,-490.0,0.0002855,3]
[368456250,1751182285778,-542.56,0.0002855,2]
[368456251,1751182285787,-490.0,0.0002855,3]
[368456252,1751182285797,-490.0,0.0002855,3]
[368456253,1751182285807,-1449.54,0.0002855,3]
[368456254,1751182285818,-490.0,0.0002855,3]
[368456255,1751182285827,-490.0,0.0002855,3]
[368456256,1751182285837,-939.34,0.0002855,3]
[368456257,1751182285847,-490.0,0.0002855,3]
[368456258,1751182285856,-1375.29,0.0002855,3]
[368456259,1751182285865,-540.72,0.0002855,3]
[368456260,1751182285875,-1541.71,0.0002855,3]
[368456261,1751182285884,-490.0,0.0002855,3]
[368456262,1751182285893,-983.84,0.0002855,3]
[368456263,1751182285902,-490.0,0.0002855,3]
[368456264,1751182285912,-2229.85,0.0002855,3]
[368456265,1751182285922,-490.0,0.0002855,3]
[368456266,1751182285933,-894.46,0.0002855,3]
[368456267,1751182285942,-490.0,0.0002855,3]
[368456268,1751182285951,-490.0,0.0002855,3]
[368456269,1751182285961,-490.0,0.0002855,3]
[368456270,1751182285971,-490.0,0.0002855,3]
[368456271,1751182285980,-365.79120635,0.0002855,3]
[368456272,1751182285991,-490.0,0.0002855,3]
[368456273,1751182286000,-702.8,0.0002855,3]
[368456274,1751182286010,-490.0,0.0002855,3]
[368456275,1751182286019,-1665.12,0.0002855,3]
[368456276,1751182286028,-490.0,0.0002855,3]
[368456277,1751182286039,-495.44,0.0002855,3]
[368456278,1751182286048,-490.0,0.0002855,3]
[368456279,1751182286058,-490.0,0.0002855,3]
[368456280,1751182286068,-931.32,0.0002855,3]
[368456281,1751182286078,-490.0,0.0002855,3]
[368456282,1751182286087,-494.1253941,0.0002855,3]
[368456283,1751182286097,-518.32,0.0002855,3]
[368456284,1751182286107,-1071.27,0.0002855,3]
[368456285,1751182286117,-490.0,0.0002855,3]
[368456286,1751182286126,-490.0,0.0002855,3]
[368456287,1751182286136,-4961.98,0.0002855,3]
[368456288,1751182286145,-1624.35,0.0002855,3]
[368456289,1751182286154,-490.0,0.0002855,3]
[368456290,1751182286164,-490.0,0.0002855,3]
[368456291,1751182286174,-490.0,0.0002855,3]
[368456292,1751182286188,-490.0,0.0002855,3]
[368456293,1751182286197,-666.17,0.0002855,3]
[368456294,1751182286207,-490.0,0.0002855,3]
[368456295,1751182286216,-490.0,0.0002855,3]
[368456296,1751182286226,-490.0,0.0002855,3]
[368456297,1751182286236,-502.47272755,0.0002855,3]
[368456298,1751182286245,-490.0,0.0002855,3]
[368456299,1751182286255,-5301.8,0.0002855,3]
[368456300,1751182286264,-1354.79,0.0002855,3]
[368456301,1751182286274,-787.97,0.0002855,3]
[368456302,1751182286283,-490.0,0.0002855,3]
[368456303,1751182286293,-309.99,0.0002855,3]
[368456304,1751182286303,-490.0,0.0002855,3]
[368456305,1751182286313,-490.0,0.0002855,3]
[368456306,1751182286322,-5764.48,0.0002855,3]
[368456307,1751182286331,-500.0,0.0002855,3]
[368456308,1751182286341,-885.71,0.0002855,3]
[368456309,1751182286350,-490.0,0.0002855,3]
[368456310,1751182286360,-490.0,0.0002855,3]
[368456311,1751182286369,-490.0,0.0002855,3]
[368456312,1751182286378,-150.0,0.0002855,2]
[368456313,1751182286388,-490.0,0.0002855,3]
[368456314,1751182286397,-4557.27,0.0002855,3]
[368456315,1751182286407,-503.44879557,0.0002855,3]
[368456316,1751182286416,-490.0,0.0002855,3]
[368456317,1751182286426,-490.0,0.0002855,3]
[368456318,1751182286435,-490.0,0.0002855,3]
[368456319,1751182286444,-1080.13,0.0002855,3]
[368456320,1751182286454,-490.0,0.00028551,3]
[368456321,1751182286463,-490.0,0.00028551,3]
[368456322,1751182286472,-490.0,0.00028551,3]
[368456323,1751182286482,-351.94290459,0.00028551,3]
[368456324,1751182286491,-633.3092198,0.00028551,3]
[368456325,1751182286500,-490.0,0.00028551,3]
[368456326,1751182286509,-1244.31,0.00028551,3]
[368456327,1751182286519,-490.0,0.00028551,3]
[368456328,1751182286528,-490.0,0.00028551,3]
[368456329,1751182286537,-1158.84,0.00028551,3]
[368456330,1751182286546,-659.68,0.00028551,3]
[368456331,1751182286556,-490.0,0.00028551,3]
[368456332,1751182286565,-490.0,0.00028551,3]
[368456333,1751182286575,-490.0,0.00028551,3]
[368456334,1751182286584,-490.0,0.00028551,3]
[368456335,1751182286593,-490.0,0.00028551,3]
[368456336,1751182286603,-490.0,0.00028551,3]
[368456337,1751182286612,-490.0,0.00028551,3]
[368456338,1751182286622,-1130.82,0.00028551,3]
[368456339,1751182286631,-211.59218876,0.00028551,3]
[368456340,1751182286641,-697.13,0.00028551,3]
[368456341,1751182286650,-490.0,0.00028551,3]
[368456342,1751182286659,-499.06244961,0.00028551,3]
[368456343,1751182286668,-811.32,0.00028551,3]
[368456344,1751182286677,-946.2,0.00028551,3]
[368456345,1751182286687,-490.0,0.00028551,3]
[368456346,1751182286696,-768.21,0.00028551,3]
[368456347,1751182286706,-490.0,0.00028551,3]
[368456348,1751182286717,-770.99,0.00028551,3]
[368456349,1751182286728,-1173.92,0.00028551,3]
[368456350,1751182286737,-638.14107528,0.00028551,3]
[368456351,1751182286746,-490.0,0.00028551,3]
[368456352,1751182286755,-490.0,0.00028551,3]
[368456353,1751182286765,-490.0,0.00028551,3]
[368456354,1751182286774,-490.0,0.00028551,3]
[368456355,1751182286783,-490.0,0.00028551,3]
[368456356,1751182286792,-490.0,0.00028551,3]
[368456357,1751182286801,-490.0,0.00028551,3]
[368456358,1751182286811,-490.0,0.00028551,3]
[368456359,1751182286820,-490.0,0.00028551,3]
[368456360,1751182286830,-1781.0,0.00028551,3]
[368456361,1751182286839,-490.0,0.00028551,3]
[368456362,1751182286849,-490.0,0.00028551,3]
[368456363,1751182286858,-490.0,0.00028551,3]
[368456364,1751182286867,-490.0,0.00028551,3]
[368456365,1751182286877,-490.0,0.00028551,3]
[368456366,1751182286886,-490.0,0.00028551,3]
[368456367,1751182286896,-602.56,0.00028551,3]
[368456368,1751182286907,-490.0,0.00028551,3]
[368456369,1751182286916,-490.0,0.00028551,3]
[368456370,1751182286925,-549.21,0.00028551,3]
[368456371,1751182286935,-248.60101509,0.00028551,3]
[368456372,1751182286944,-786.29,0.00028551,3]
[368456373,1751182286953,-1271.32,0.00028551,3]
[368456374,1751182286962,-597.83409846,0.00028551,3]
[368456375,1751182286972,-490.0,0.00028551,3]
[368456376,1751182286981,-490.0,0.00028551,3]
[368456377,1751182286990,-683.52,0.00028551,3]
[368456378,1751182287000,-490.0,0.00028551,3]
[368456379,1751182287009,-490.0,0.00028551,3]
[368456380,1751182287019,-490.0,0.00028551,3]
[368456381,1751182287027,-490.0,0.00028551,3]
[368456382,1751182287037,-490.0,0.00028551,3]
[368456383,1751182287047,-490.0,0.00028551,3]
[368456384,1751182287059,-198.39655841,0.00028551,3]
[368456385,1751182287068,-490.0,0.00028551,3]
[368456386,1751182287078,-490.0,0.00028551,3]
[368456387,1751182287087,-490.0,0.00028551,3]
[368456388,1751182287096,-510.20819298,0.00028551,3]
[368456389,1751182287106,-490.0,0.00028551,3]
[368456390,1751182287115,-370.38077494,0.00028551,3]
[368456391,1751182287124,-490.0,0.00028551,3]
[368456392,1751182287134,-490.0,0.00028551,3]
[368456393,1751182287143,-1090.8,0.00028551,3]
[368456394,1751182287152,-213.47612455,0.00028551,3]
[368456395,1751182287161,-490.0,0.00028551,3]
[368456396,1751182287170,-490.0,0.00028551,3]
[368456397,1751182287182,-574.36,0.00028551,3]
[368456398,1751182287192,-490.0,0.00028551,3]
[368456399,1751182287201,-490.0,0.00028551,3]
[368456400,1751182287211,-477.27552632,0.00028551,3]
[368456401,1751182287220,-490.0,0.00028551,3]
[368456402,1751182287230,-490.0,0.00028551,3]
[368456403,1751182287239,-490.0,0.00028551,3]
[368456404,1751182287249,-490.0,0.00028551,3]
[368456405,1751182287259,-918.29,0.00028551,3]
[368456406,1751182287268,-490.0,0.00028551,3]
[368456407,1751182287278,-850.17,0.00028551,3]
[368456408,1751182287287,-502.18289488,0.00028551,3]
[368456409,1751182287296,-490.0,0.00028551,3]
[368456410,1751182287306,-490.0,0.00028551,3]
[368456411,1751182287315,-490.0,0.00028551,3]
[368456412,1751182287325,-1510.07,0.00028551,3]
[368456413,1751182287334,-490.0,0.00028551,3]
[368456414,1751182287343,-490.0,0.00028551,3]
[368456415,1751182287353,-490.0,0.00028551,3]
[368456416,1751182287362,-490.0,0.00028551,3]
[368456417,1751182287371,-490.0,0.00028551,3]
[368456418,1751182287380,-1968.49,0.00028551,3]
[368456419,1751182287389,-1024.8,0.00028551,3]
[368456420,1751182287398,-490.0,0.00028551,3]
[368456421,1751182287407,-1938.21,0.00028551,3]
[368456422,1751182287416,-490.0,0.00028551,3]
[368456423,1751182287426,-490.0,0.00028551,3]
[368456424,1751182287435,-490.0,0.00028551,3]
[368456425,1751182287444,-2280.24,0.00028551,3]
[368456426,1751182287454,-490.0,0.00028551,3]
[368456427,1751182287464,-490.0,0.00028551,3]
[368456428,1751182287473,-490.0,0.00028551,3]
[368456429,1751182287483,-490.0,0.00028551,3]
[368456430,1751182287492,-490.0,0.00028551,3]
[368456431,1751182287501,-490.0,0.00028551,3]
[368456432,1751182287511,-1310.03,0.00028551,3]
[368456433,1751182287522,-2079.14,0.00028551,3]
[368456434,1751182287534,-490.0,0.00028551,3]
[368456435,1751182287543,-984.88,0.00028551,3]
[368456436,1751182287554,-490.0,0.00028551,3]
[368456437,1751182287564,-505.79,0.00028551,3]
[368456438,1751182287574,-1351.45,0.00028551,3]
[368456439,1751182287584,-931.44,0.00028551,3]
[368456440,1751182287593,-490.0,0.00028551,3]
[368456441,1751182287603,-490.0,0.00028551,3]
[368456442,1751182287614,-490.0,0.00028551,3]
[368456443,1751182287625,-1382.04,0.00028551,3]
[368456444,1751182287635,-1189.11,0.00028551,3]
[368456445,1751182287644,-490.0,0.00028551,3]
[368456446,1751182287654,-697.02,0.00028551,3]
[368456447,1751182287664,-2513.82,0.00028551,3]
[368456448,1751182287674,-717.45,0.00028551,3]
[368456449,1751182287683,-1647.29,0.00028551,3]
[368456450,1751182287692,-827.88,0.00028551,3]
[368456451,1751182287701,-545.29,0.00028551,3]
[368456452,1751182287711,-490.0,0.00028551,3]
[368456453,1751182287720,-337.91992878,0.00028551,3]
[368456454,1751182287730,-490.0,0.00028551,3]
[368456455,1751182287739,-1136.05,0.00028551,3]
[368456456,1751182287749,-490.0,0.00028551,3]
[368456457,1751182287759,-490.0,0.00028551,3]
[368456458,1751182287768,-490.0,0.00028551,3]
[368456459,1751182287780,-490.0,0.00028551,3]
[368456460,1751182287790,-1898.37,0.00028551,3]
[368456461,1751182287802,-490.0,0.00028551,3]
[368456462,1751182287811,-1682.68,0.00028551,3]
[368456463,1751182287822,-860.32,0.00028551,3]
[368456464,1751182287831,-490.0,0.00028551,3]
[368456465,1751182287842,-1033.86,0.00028551,3]
[368456466,1751182287852,-490.0,0.00028551,3]
[368456467,1751182287861,-1863.14,0.00028551,3]
[368456468,1751182287871,-503.45,0.00028551,3]
[368456469,1751182287880,-490.0,0.00028551,3]
[368456470,1751182287890,-490.0,0.00028551,3]
[368456471,1751182287900,-559.45,0.00028551,3]
[368456472,1751182287909,-490.0,0.00028551,3]
[368456473,1751182287919,-490.0,0.00028551,3]
[368456474,1751182287928,-845.57,0.00028551,3]
[368456475,1751182287937,-1012.95,0.00028551,3]
[368456476,1751182287947,-490.0,0.00028551,3]
[368456477,1751182287956,-490.0,0.00028551,3]
[368456478,1751182287965,-490.0,0.00028551,3]
[368456479,1751182287975,-490.0,0.00028551,3]
[368456480,1751182287985,-763.04,0.00028551,3]
[368456481,1751182287994,-490.0,0.00028551,3]
[368456482,1751182288004,-513.18,0.00028551,3]
[368456483,1751182288013,-490.0,0.00028551,3]
[368456484,1751182288023,-490.0,0.00028551,3]
[368456485,1751182288034,-754.81,0.00028551,3]
[368456486,1751182288044,-2083.43,0.00028551,3]
[368456487,1751182288054,-490.0,0.00028551,3]
[368456488,1751182288064,-490.0,0.00028551,3]
[368456489,1751182288074,-578.63,0.00028551,3]
[368456490,1751182288084,-490.0,0.00028551,3]
[368456491,1751182288093,-1192.32,0.00028551,3]
[368456492,1751182288103,-1288.42,0.00028551,3]
[368456493,1751182288112,-1925.21,0.00028551,3]
[368456494,1751182288122,-2476.36,0.00028551,3]
[368456495,1751182288132,-902.85,0.00028551,3]
[368456496,1751182288142,-1164.16,0.00028551,3]
[368456497,1751182288152,-969.66,0.00028551,3]
[368456498,1751182288163,-490.0,0.00028551,3]
[368456499,1751182288173,-1053.26,0.00028551,3]
[368456500,1751182288186,-490.0,0.00028551,3]
[368456501,1751182288196,-1188.07,0.00028551,3]
[368456502,1751182288206,-490.0,0.00028551,3]
[368456503,1751182288215,-584.73,0.00028551,3]
[368456504,1751182288226,-490.0,0.00028551,3]
[368456505,1751182288236,-791.33,0.00028551,3]
[368456506,1751182288246,-1296.27,0.00028551,3]
[368456507,1751182288256,-490.0,0.00028551,3]
[368456508,1751182288266,-2820.61,0.00028551,3]
[368456509,1751182288275,-490.0,0.00028551,3]
[368456510,1751182288285,-1019.22,0.00028551,3]
[368456511,1751182288296,-490.0,0.00028551,3]
[368456512,1751182288305,-490.0,0.00028551,3]
[368456513,1751182288315,-2236.14,0.00028551,3]
[368456514,1751182288325,-490.0,0.00028551,3]
[368456515,1751182288334,-490.0,0.00028551,3]
[368456516,1751182288343,-630.74,0.00028551,3]
[368456517,1751182288353,-692.02,0.00028551,3]
[368456518,1751182288363,-179.83645824,0.00028551,3]
[368456519,1751182288373,-2064.97,0.00028551,3]
[368456520,1751182288383,-1207.44,0.00028551,3]
[368456521,1751182288393,-1001.03,0.00028551,3]
[368456522,1751182288402,-490.0,0.00028551,3]
[368456523,1751182288412,-1139.8,0.00028551,3]
[368456524,1751182288422,-2010.41,0.00028551,3]
[368456525,1751182288432,-1023.05,0.00028551,3]
[368456526,1751182288442,-490.0,0.00028551,3]
[368456527,1751182288452,-3188.56,0.00028551,3]
[368456528,1751182288462,-490.0,0.00028551,3]
[368456529,1751182288471,-490.0,0.00028551,3]
[368456530,1751182288481,-1542.42,0.00028551,3]
[368456531,1751182288490,-490.0,0.00028551,3]
[368456532,1751182288501,-490.0,0.00028551,3]
[368456533,1751182288510,-1406.31,0.00028551,3]
[368456534,1751182288520,-642.92,0.00028551,3]
[368456535,1751182288530,-691.64,0.00028551,3]
[368456536,1751182288539,-490.0,0.00028551,3]
[368456537,1751182288549,-1367.44,0.00028551,3]
[368456538,1751182288559,-940.99,0.00028551,3]
[368456539,1751182288569,-490.0,0.00028551,3]
[368456540,1751182288579,-490.0,0.00028551,3]
[368456541,1751182288588,-2991.05,0.00028551,3]
[368456542,1751182288598,-490.0,0.00028551,3]
[368456543,1751182288608,-881.32,0.00028551,3]
[368456544,1751182288618,-2342.8,0.00028551,3]
[368456545,1751182288627,-202.92775587,0.00028555,19]
[368456546,1751182288637,-16700.11150155,0.00028561,4]
[368456547,1751182288647,-763616.51153227,0.00028561,4]
[368456548,1751182288657,-617.59992273,0.00028561,2]
[368456549,1751182288667,-490.0,0.00028561,3]
[368456550,1751182288677,-490.0,0.00028561,3]
[368456551,1751182288686,-508.08,0.00028561,3]
[368456552,1751182288696,-604.29,0.00028561,3]
[368456553,1751182288706,-490.0,0.00028561,3]
[368456554,1751182288716,-662.65,0.00028561,3]
[368456555,1751182288726,-490.0,0.00028561,3]
[368456556,1751182288735,-490.0,0.00028561,3]
[368456557,1751182288745,-534.71923386,0.00028561,3]
[368456558,1751182288755,-530.55,0.00028561,3]
[368456559,1751182288765,-490.0,0.00028561,3]
[368456560,1751182288775,-225.9018356,0.00028561,3]
[368456561,1751182288784,-490.0,0.00028561,3]
[368456562,1751182288794,-490.0,0.00028561,3]
[368456563,1751182288804,-490.0,0.00028561,3]
[368456564,1751182288813,-899.8,0.00028561,3]
[368456565,1751182288823,-490.0,0.00028561,3]
[368456566,1751182288834,-490.0,0.00028561,3]
[368456567,1751182288843,-490.0,0.00028561,3]
[368456568,1751182288853,-493.73,0.00028561,3]
[368456569,1751182288862,-490.0,0.00028561,3]
[368456570,1751182288872,-490.0,0.00028561,3]
[368456571,1751182288882,-490.0,0.00028561,3]
[368456572,1751182288892,-1215.98,0.00028561,3]
[368456573,1751182288902,-490.0,0.00028561,3]
[368456574,1751182288911,-490.0,0.00028561,3]
[368456575,1751182288921,-490.0,0.00028561,3]
[368456576,1751182288931,-1152.7,0.00028561,3]
[368456577,1751182288940,-490.0,0.00028561,3]
[368456578,1751182288950,-600.6,0.00028561,3]
[368456579,1751182288961,-1773.87,0.00028561,3]
[368456580,1751182288971,-504.67,0.00028561,3]
[368456581,1751182288981,-490.0,0.00028561,3]
[368456582,1751182288991,-490.0,0.00028561,3]
[368456583,1751182289001,-490.0,0.00028561,3]
[368456584,1751182289011,-571.46,0.00028561,3]
[368456585,1751182289021,-491.2,0.00028561,3]
[368456586,1751182289030,-490.0,0.00028561,3]
[368456587,1751182289040,-490.0,0.00028561,3]
[368456588,1751182289050,-490.0,0.00028561,3]
[368456589,1751182289060,-914.08,0.00028561,3]
[368456590,1751182289070,-490.0,0.00028561,3]
[368456591,1751182289080,-490.0,0.00028561,3]
[368456592,1751182289090,-1598.03,0.00028561,3]
[368456593,1751182289100,-560.03,0.00028561,3]
[368456594,1751182289110,-490.0,0.00028561,3]
[368456595,1751182289120,-490.0,0.00028561,3]
[368456596,1751182289130,-2197.41,0.00028561,3]
[368456597,1751182289140,-490.0,0.00028561,3]
[368456598,1751182289150,-1521.71,0.00028561,3]
[368456599,1751182289160,-938.22,0.00028561,3]
[368456600,1751182289170,-1941.8,0.00028561,3]
[368456601,1751182289180,-490.0,0.00028561,3]
[368456602,1751182289192,-780.19,0.00028561,3]
[368456603,1751182289203,-490.0,0.00028561,3]
[368456604,1751182289213,-490.0,0.00028561,3]
[368456605,1751182289224,-2180.27,0.00028561,3]
[368456606,1751182289234,-504.24,0.00028561,3]
[368456607,1751182289243,-490.0,0.00028561,3]
[368456608,1751182289254,-490.0,0.00028561,3]
[368456609,1751182289264,-835.78,0.00028561,3]
[368456610,1751182289274,-490.0,0.00028561,3]
[368456611,1751182289285,-504.61,0.00028561,3]
[368456612,1751182289295,-2659.93,0.00028561,3]
[368456613,1751182289304,-490.0,0.00028561,3]
[368456614,1751182289314,-2182.16,0.00028561,3]
[368456615,1751182289323,-490.0,0.00028561,3]
[368456616,1751182289333,-1937.08,0.00028561,3]
[368456617,1751182289343,-490.0,0.00028561,3]
[368456618,1751182289352,-3046.88,0.00028561,3]
[368456619,1751182289362,-490.0,0.00028561,3]
[368456620,1751182289372,-1004.09,0.00028561,3]
[368456621,1751182289382,-2032.67,0.00028561,3]
[368456622,1751182289391,-1938.19,0.00028561,3]
[368456623,1751182289402,-2554.32,0.00028561,3]
[368456624,1751182289412,-490.0,0.00028561,3]
[368456625,1751182289421,-1056.03,0.00028561,3]
[368456626,1751182289431,-490.0,0.00028561,3]
[368456627,1751182289441,-490.0,0.00028561,3]
[368456628,1751182289450,-490.0,0.00028561,3]
[368456629,1751182289460,-300.0,0.00028561,3]
[368456630,1751182289471,-361.45801944,0.00028561,4]
[368456631,1751182289480,-545.67,0.00028561,3]
[368456632,1751182289490,-490.0,0.00028561,3]
[368456633,1751182289499,-1204.11,0.00028561,3]
[368456634,1751182289509,-1295.32,0.00028561,3]
[368456635,1751182289518,-2630.87,0.00028561,3]
[368456636,1751182289528,-490.0,0.00028561,3]
[368456637,1751182289538,-2718.03,0.00028561,3]
[368456638,1751182289548,-490.0,0.00028561,3]
[368456639,1751182289559,-490.0,0.00028561,3]
[368456640,1751182289791,-490.0,0.00028561,3]
[368456641,1751182289800,-2542.12,0.00028561,3]
[368456642,1751182289809,-490.0,0.00028561,3]
[368456643,1751182289819,-233.55962987,0.00028561,3]
[368456644,1751182289829,-1526.26,0.00028561,3]
[368456645,1751182289839,-490.0,0.00028561,3]
[368456646,1751182289850,-437.57,0.00028561,3]
[368456647,1751182289859,-490.0,0.00028561,3]
[368456648,1751182289869,-1768.2,0.00028561,3]
[368456649,1751182289878,-1581.27,0.00028561,3]
[368456650,1751182289887,-490.0,0.00028561,3]
[368456651,1751182289896,-1700.74,0.00028561,3]
[368456652,1751182289906,-490.0,0.00028561,3]
[368456653,1751182289915,-297.35183548,0.00028561,3]
[368456654,1751182289924,-1092.62,0.00028561,3]
[368456655,1751182289933,-587.51,0.00028561,3]
[368456656,1751182289943,-490.0,0.00028561,3]
[368456657,1751182289952,-1500.09,0.00028561,3]
[368456658,1751182289961,-539.26,0.00028561,3]
[368456659,1751182289970,-490.0,0.00028561,3]
[368456660,1751182289980,-500.0,0.00028561,3]
[368456661,1751182289990,-517.05,0.00028561,3]
[368456662,1751182289999,-490.0,0.00028561,3]
[368456663,1751182290009,-490.0,0.00028561,3]
[368456664,1751182290018,-879.49,0.00028561,3]
[368456665,1751182290028,-490.0,0.00028561,3]
[368456666,1751182290040,-490.0,0.00028561,3]
[368456667,1751182290049,-490.0,0.00028561,3]
[368456668,1751182290059,-1436.05,0.00028561,3]
[368456669,1751182290068,-500.0,0.00028561,3]
[368456670,1751182290078,-490.0,0.00028561,3]
[368456671,1751182290089,-490.0,0.00028561,3]
[368456672,1751182290099,-490.0,0.00028561,3]
[368456673,1751182290108,-490.0,0.00028561,3]
[368456674,1751182290118,-174.667465,0.00028562,7]
[368456675,1751182290128,-1700.74,0.00028602,3]
[368456676,1751182290138,-490.0,0.00028603,3]
[368456677,1751182290148,-713.43,0.00028603,3]
[368456678,1751182290157,-496.04894198,0.00028603,3]
[368456679,1751182290166,-490.0,0.00028603,3]
[368456680,1751182290176,-490.0,0.00028603,3]